bitfinex/quotes_ETHUSD_20250605
["timestamp","ask_amount","ask_price","bid_price","bid_amount"]
[1749135075546,0.02,2598.9,2598.8,36.58271195]
[1749135075749,0.02,2598.9,2598.8,36.5827152]
[1749135076063,0.02,2598.9,2598.8,36.22670853]
[1749135076245,0.02,2598.9,2598.8,36.58267735]
[1749135076447,0.02,2598.9,2598.8,36.77670853]
[1749135076793,0.02,2598.9,2598.8,37.13251901]
[1749135076997,0.02,2598.9,2598.8,24.75977581]
[1749135077287,0.02,2598.9,2598.8,2.299]
[1749135077626,0.02,2598.9,2597.8,8.308]
[1749135077879,3.86786005,2598.9,2598.3,3.84866588]
[1749135078087,3.84816334,2598.7,2598.0,10.0]
[1749135078282,3.84816334,2598.7,2597.9,6.14816222]
[1749135078283,3.84800969,2598.8,2598.2,3.8487483]
[1749135078449,0.02,2598.9,2598.1,11.19695827]
[1749135078647,3.84799865,2598.8,2598.2,3.84881841]
[1749135078836,3.84799865,2598.8,2598.2,11.19081841]
[1749135079291,3.84799865,2598.8,2598.3,3.84866775]
[1749135079474,3.86784935,2598.9,2598.3,3.84866775]
[1749135079655,0.02,2598.9,2598.3,10.0]
[1749135079873,0.02,2598.9,2598.4,3.819741]
[1749135080089,0.02,2598.9,2598.3,17.41730521]
[1749135080090,0.02,2598.9,2598.6,3.84810207]
[1749135080366,0.02,2598.9,2598.7,2.299]
[1749135080535,0.02,2598.9,2598.8,7.345]
[1749135080735,0.02,2598.9,2598.8,9.637]
[1749135080979,3.84816661,2598.7,2598.1,3.84887732]
[1749135081265,0.02,2598.9,2598.5,3.84831381]
[1749135081432,3.86784127,2598.9,2598.3,3.84859728]
[1749135081632,0.02,2598.9,2598.4,3.84849124]
[1749135081869,0.02,2598.9,2598.5,3.84836009]
[1749135082071,0.02,2598.9,2598.6,3.84811346]
[1749135082282,0.02,2598.9,2598.7,7.334]
[1749135082634,0.40676439,2598.9,2597.9,16.0]
[1749135082835,3.84793464,2598.8,2598.2,19.84873334]
[1749135083037,3.84815542,2598.7,2598.3,2.299]
[1749135083255,0.02,2598.9,2598.3,13.47664586]
[1749135083472,3.84797611,2598.8,2598.3,9.628]
[1749135083987,3.84794351,2598.8,2598.3,9.628]
[1749135084189,0.02,2598.9,2598.3,9.628]
[1749135084190,3.84829765,2598.6,2598.3,9.628]
[1749135084487,3.84823237,2598.6,2598.4,9.617]
[1749135084650,3.84845822,2598.5,2597.9,3.84922464]
[1749135084849,4.69562596,2598.6,2598.0,9.611]
[1749135085051,3.84845452,2598.5,2598.0,13.46010779]
[1749135085238,4.69569737,2598.6,2598.0,6.14810779]
[1749135085435,0.8474,2598.6,2598.0,2.299]
[1749135085737,0.8474,2598.6,2597.8,8.308]
[1749135085738,3.84926286,2597.9,2597.8,8.308]
[1749135085980,3.84896012,2598.2,2597.8,8.308]
[1749135086288,3.84884203,2598.2,2597.9,9.607]
[1749135086451,3.8491147,2598.0,2597.6,8.307]
[1749135086664,16.55,2598.3,2597.7,2.299]
[1749135086972,3.84903518,2598.1,2597.5,3.84984615]
[1749135087136,3.84914211,2598.0,2597.4,3.84990422]
[1749135087336,16.55,2598.3,2597.6,3.84962348]
[1749135087540,16.55,2598.3,2597.0,0.38506362]
[1749135087541,0.55,2598.3,2597.0,0.38506362]
[1749135087756,0.55,2598.3,2597.3,3.85004801]
[1749135088097,0.8474,2598.6,2597.2,16.0]
[1749135088241,0.4776513,2598.9,2597.6,3.84970742]
[1749135088242,0.02,2598.9,2597.6,3.84970742]
[1749135088434,3.86786899,2598.9,2598.3,3.84864837]
[1749135088634,0.02,2598.9,2598.4,7.297]
[1749135088880,0.02,2598.9,2598.4,11.14545394]
[1749135089089,0.02,2598.9,2598.5,3.84837406]
[1749135089258,0.02,2598.9,2598.8,3.84792981]
[1749135089461,0.02,2598.9,2598.7,3.84800498]
[1749135089764,0.02,2598.9,2598.5,4.9628053]
[1749135089966,0.02,2598.9,2598.6,7.288]
[1749135090161,0.02,2598.9,2598.1,16.0]
[1749135090493,0.02,2598.9,2598.5,3.84828812]
[1749135091737,0.02,2598.9,2598.3,16.0]
[1749135091980,0.02,2598.9,2598.5,3.84830417]
[1749135092292,0.02,2598.9,2598.3,19.8486102]
[1749135092592,0.02,2598.9,2598.3,22.56189858]
[1749135092798,0.02,2598.9,2598.3,16.0]
[1749135092957,0.02,2598.9,2598.2,3.84874001]
[1749135092958,3.8678114,2598.9,2598.4,7.266]
[1749135093146,3.84815187,2598.7,2598.5,10.606]
[1749135093548,0.8147,2598.7,2598.5,10.606]
[1749135093750,3.84822596,2598.6,2598.5,8.307]
[1749135093994,5.03001826,2598.7,2598.5,17.867]
[1749135094382,3.84822596,2598.6,2598.5,10.606]
[1749135094581,0.36716165,2598.6,2598.5,17.862]
[1749135094786,4.39822596,2598.6,2598.5,10.606]
[1749135094949,4.39822596,2598.6,2598.5,17.857]
[1749135095263,4.39822596,2598.6,2598.5,17.775]
[1749135095652,0.55,2598.6,2598.5,17.775]
[1749135095854,4.39822596,2598.6,2598.5,17.775]
[1749135096057,4.39822596,2598.6,2598.5,10.527]
[1749135096251,4.76558719,2598.6,2598.5,10.527]
[1749135096508,4.76558719,2598.6,2598.5,17.767]
[1749135096648,4.76558719,2598.6,2598.5,10.527]
[1749135096852,4.76558719,2598.6,2598.5,8.307]
[1749135097084,4.76558719,2598.6,2598.5,10.527]
[1749135097085,20.39822596,2598.6,2598.5,10.527]
[1749135097265,21.65080256,2598.6,2598.5,10.527]
[1749135097469,22.11002332,2598.6,2598.5,10.527]
[1749135097667,0.8755,2598.0,2597.0,16.0]
[1749135097890,0.55,2597.9,2597.1,14.73487495]
[1749135098053,8.42918472,2597.4,2597.2,2.57740085]
[1749135098252,1.4239,2597.3,2597.2,9.45]
[1749135098452,0.8739,2597.3,2597.2,9.45]
[1749135098994,3.85118293,2596.7,2596.5,8.307]
[1749135099302,4.4010417,2596.7,2596.6,2.22]
[1749135099471,4.4010417,2596.7,2596.6,9.447]
[1749135099796,0.8739,2596.8,2596.6,9.447]
[1749135100001,0.36676416,2597.1,2596.6,9.447]
[1749135100212,1.24396416,2597.2,2596.6,11.2224]
[1749135100386,16.0,2597.4,2596.6,11.2224]
[1749135100708,0.61224296,2597.9,2596.6,11.2224]
[1749135100709,0.808,2597.8,2596.8,16.0]
[1749135100854,0.808,2597.8,2596.6,1.7754]
[1749135100855,8.42918472,2597.2,2596.6,1.7754]
[1749135101051,3.84981613,2597.6,2597.0,3.85058422]
[1749135101282,3.84981613,2597.6,2596.9,3.85065822]
[1749135101283,8.97918472,2597.6,2596.9,3.85065822]
[1749135101499,8.97918472,2597.6,2596.7,9.461]
[1749135101715,0.55,2597.3,2596.8,0.3561438]
[1749135101877,8.97918472,2597.3,2596.6,19.85110736]
[1749135102197,8.97918472,2597.0,2596.5,8.307]
[1749135102503,0.55,2596.8,2596.6,9.454]
[1749135102794,0.8243,2597.4,2596.5,8.307]
[1749135102995,16.8504,2597.8,2597.1,3.85036275]
[1749135103169,0.8504,2597.8,2597.2,7.236]
[1749135103376,3.84996071,2597.5,2596.7,2.22]
[1749135103575,8.42918472,2597.7,2596.9,3.85068482]
[1749135103788,0.55,2597.4,2597.0,2.22]
[1749135103961,0.8504,2597.8,2597.0,9.454]
[1749135104166,3.84970742,2597.6,2597.0,9.454]
[1749135104507,0.55,2597.0,2596.5,8.307]
[1749135104800,0.55,2596.7,2596.6,9.458]
[1749135105003,4.40119001,2596.6,2596.5,8.307]
[1749135105297,4.40119001,2596.6,2596.5,17.763]
[1749135105497,0.55,2596.6,2596.5,17.763]
[1749135105699,4.40112095,2596.7,2596.5,17.763]
[1749135105900,4.40119001,2596.6,2596.5,8.307]
[1749135106077,4.40119001,2596.6,2596.5,17.761]
[1749135106285,5.23999001,2596.6,2596.5,10.528]
[1749135106492,5.23999001,2596.6,2596.1,0.02]
[1749135106493,1.3888,2596.2,2596.1,0.02]
[1749135106697,13.66976809,2596.2,2596.1,2.241]
[1749135107272,29.66976809,2596.2,2596.1,2.241]
[1749135107475,30.03544172,2596.2,2596.1,2.241]
[1749135107765,30.03544172,2596.2,2595.4,8.311]
[1749135107766,3.85276966,2595.6,2595.4,8.311]
[1749135108102,12.83200691,2595.5,2595.4,15.541]
[1749135108305,12.83200691,2595.5,2595.4,10.532]
[1749135108635,0.8469,2595.9,2595.4,14.38485147]
[1749135108805,0.8469,2595.9,2595.4,10.532]
[1749135109120,0.55,2595.7,2595.4,10.532]
[1749135109517,0.55,2595.7,2595.5,7.229]
[1749135109699,0.55,2595.8,2595.5,7.229]
[1749135110283,0.8469,2595.9,2595.6,3.85265705]
[1749135110489,7.78,2596.2,2595.5,9.0051]
[1749135110791,0.8278,2596.3,2595.7,3.85252533]
[1749135111014,0.8278,2596.3,2595.8,3.85236496]
[1749135111194,4.40195576,2596.1,2595.5,3.85277326]
[1749135111396,0.55,2596.1,2595.6,11.0816024]
[1749135111602,0.55,2596.1,2595.6,11.08157387]
[1749135111801,0.55,2596.1,2595.7,3.85247008]
[1749135112350,0.55,2595.8,2595.4,8.311]
[1749135112482,0.55,2595.8,2595.7,7.229]
[1749135112689,0.55,2595.8,2595.5,2.221]
[1749135112886,0.55,2595.8,2595.6,7.229]
[1749135113924,0.55,2595.8,2595.7,7.229]
[1749135114624,0.55,2596.0,2595.7,7.229]
[1749135114927,0.55,2595.5,2595.4,8.311]
[1749135115125,8.97918472,2595.5,2595.4,17.763]
[1749135115294,29.68110691,2595.5,2595.4,10.533]
[1749135115488,17.3991,2595.5,2595.4,10.533]
[1749135115705,29.68110691,2595.5,2595.4,10.533]
[1749135116020,29.68110691,2595.5,2595.4,17.763]
[1749135116427,25.82828472,2595.5,2595.4,17.763]
[1749135116600,13.68110691,2595.5,2595.4,17.763]
[1749135117012,13.68110691,2595.5,2595.4,10.533]
[1749135117931,13.68110691,2595.5,2595.4,8.311]
[1749135118104,3.85326757,2595.2,2595.1,2.242]
[1749135118309,29.71445229,2595.2,2595.1,2.242]
[1749135118625,29.71445229,2595.2,2595.1,0.02]
[1749135119002,30.07840615,2595.2,2595.1,0.02]
[1749135119231,30.07840834,2595.2,2595.1,0.02]
[1749135119416,30.07840834,2595.2,2594.4,15.547]
[1749135119417,9.26948472,2594.6,2594.4,15.547]
[1749135119598,9.81948472,2594.6,2594.5,2.222]
[1749135119793,9.81948472,2594.6,2594.5,9.453]
[1749135119794,0.55,2594.6,2594.5,9.453]
[1749135120599,12.83334335,2594.6,2594.4,8.316]
[1749135120794,8.97918472,2594.6,2594.5,9.453]
[1749135121309,0.55,2594.6,2594.5,9.453]
[1749135121706,9.26948472,2594.9,2594.5,13.30724631]
[1749135121707,0.8403,2594.9,2594.5,13.30724631]
[1749135121934,0.8403,2594.9,2594.5,9.453]
[1749135122242,4.40429145,2594.6,2594.4,8.316]
[1749135122421,4.40429145,2594.6,2594.1,0.02]
[1749135122422,4.40475291,2594.2,2594.1,2.242]
[1749135122731,29.68173763,2594.2,2594.1,2.242]
[1749135123039,4.40564466,2593.6,2593.3,7.232]
[1749135123239,29.68262938,2593.6,2593.5,2.37672454]
[1749135123395,0.837,2594.0,2593.5,2.37672454]
[1749135123592,0.55,2593.9,2593.5,0.15472454]
[1749135123796,4.40553459,2593.7,2593.6,2.223]
[1749135123993,4.40553459,2593.7,2593.5,0.15472454]
[1749135123994,3.85564466,2593.6,2593.5,0.15472454]
[1749135124242,3.85564466,2593.6,2593.5,2.37772454]
[1749135124243,21.24444466,2593.6,2593.5,2.37772454]
[1749135124456,4.40623939,2593.2,2593.1,8.337]
[1749135124598,0.36455814,2593.4,2593.1,12.19335923]
[1749135124800,0.8388,2593.5,2593.1,8.337]
[1749135125032,8.79374286,2593.7,2593.1,8.337]
[1749135125239,0.55,2593.6,2593.1,8.337]
[1749135125535,0.55,2593.4,2593.1,8.337]
[1749135125736,0.55,2593.2,2593.1,8.337]
[1749135126043,3.8562152,2593.3,2593.1,17.777]
[1749135126044,4.77055617,2593.3,2593.1,17.777]
[1749135126543,0.91446475,2593.2,2593.1,17.777]
[1749135127020,0.55,2593.2,2593.1,17.777]
[1749135127409,1.3734,2593.2,2593.1,8.337]
[1749135127615,22.04963727,2593.2,2593.1,2.227]
[1749135127936,5.59393959,2593.2,2593.1,2.227]
[1749135128243,0.3643002,2593.2,2593.1,9.462]
[1749135128427,0.3643002,2593.4,2593.1,9.462]
[1749135128618,0.84302043,2594.1,2593.7,3.85537206]
[1749135128817,0.36415868,2594.0,2593.8,17.763]
[1749135129124,0.38977556,2594.3,2593.8,21.61821707]
[1749135129325,0.36412528,2594.2,2594.1,3.8549015]
[1749135129639,0.36414622,2594.4,2594.2,3.85475291]
[1749135129811,0.36414622,2594.7,2594.1,7.62049015]
[1749135130012,8.42918472,2594.9,2594.4,3.85445209]
[1749135130212,8.42918472,2594.9,2594.1,7.62049015]
[1749135130213,0.36408297,2594.8,2594.5,9.442]
[1749135130421,8.42918472,2594.9,2594.5,9.442]
[1749135130742,0.36414423,2594.8,2594.6,3.85404659]
[1749135130963,0.36421661,2595.1,2594.5,9.442]
[1749135131103,0.32038202,2594.8,2594.5,9.442]
[1749135131309,8.42918472,2594.6,2594.5,2.207]
[1749135131511,0.36424818,2594.6,2594.5,9.442]
[1749135131706,0.36424818,2594.6,2593.8,12.1763098]
[1749135131707,1.3724,2594.5,2593.8,8.321]
[1749135132070,0.55,2594.2,2593.9,9.442]
[1749135132216,0.36451907,2594.4,2593.9,9.442]
[1749135132217,12.83423483,2594.0,2593.9,2.207]
[1749135132545,9.34377027,2594.0,2593.9,2.207]
[1749135132753,13.19882038,2594.0,2593.9,2.207]
[1749135132963,0.91458555,2594.0,2593.9,2.207]
[1749135133314,4.21963566,2594.0,2593.9,2.207]
[1749135133617,4.76963566,2594.0,2593.9,2.207]
[1749135134055,6.09366963,2594.0,2593.9,2.207]
[1749135134258,21.63833566,2594.0,2593.9,2.207]
[1749135134463,22.25057862,2594.0,2593.9,2.207]
[1749135134665,3.85597602,2593.4,2592.9,8.321]
[1749135134812,4.22071125,2593.3,2593.0,9.79732845]
[1749135135017,4.22090272,2593.2,2593.0,2.207]
[1749135135217,4.72494944,2593.2,2593.0,2.207]
[1749135135446,0.36557063,2593.1,2593.0,2.207]
[1749135135763,4.22195873,2593.1,2593.0,2.207]
[1749135135935,13.59039914,2593.1,2593.0,2.207]
[1749135136133,4.40653682,2593.0,2592.9,10.528]
[1749135136347,21.64080745,2593.0,2592.9,10.528]
[1749135136566,22.25001366,2593.0,2592.9,10.528]
[1749135136730,21.64080745,2593.0,2592.9,10.528]
[1749135136921,22.25001366,2593.0,2592.9,10.528]
[1749135137553,21.64080745,2593.0,2592.9,10.528]
[1749135137759,4.40772702,2592.2,2592.1,0.02]
[1749135137959,4.77329765,2592.2,2592.1,9.463]
[1749135138461,20.77329765,2592.2,2592.1,2.227]
[1749135138661,0.91557063,2592.2,2592.1,9.463]
[1749135138864,0.36557063,2592.2,2592.1,9.463]
[1749135139073,13.20248237,2592.2,2592.1,9.463]
[1749135139228,14.5168062,2592.2,2592.1,2.228]
[1749135139569,0.91557063,2592.2,2592.1,2.228]
[1749135139752,0.36557063,2592.2,2592.1,2.228]
[1749135139923,0.36557063,2592.2,2592.1,6.08587585]
[1749135140131,0.36557063,2592.2,2592.1,2.228]
[1749135140350,0.55,2592.5,2592.1,2.228]
[1749135140565,0.45669742,2592.9,2592.2,7.237]
[1749135140768,0.36510976,2592.8,2592.3,11.09447724]
[1749135141035,12.28590129,2592.9,2592.4,0.35538958]
[1749135141249,0.55,2592.7,2592.5,0.35540653]
[1749135141429,0.55,2592.5,2592.1,0.02]
[1749135141649,13.20193288,2592.4,2592.3,7.237]
[1749135141829,4.40772702,2592.2,2592.1,7.258]
[1749135142027,4.77304164,2592.2,2592.1,0.02]
[1749135142237,13.20222636,2592.2,2592.1,2.228]
[1749135142573,29.20222636,2592.2,2592.1,2.228]
[1749135142772,9.80139075,2592.2,2592.1,2.228]
[1749135142973,13.20222636,2592.2,2592.1,2.228]
[1749135143774,4.22304164,2592.2,2592.1,2.228]
[1749135143989,5.22993305,2592.2,2592.1,0.02]
[1749135144133,0.36531462,2592.2,2592.1,2.228]
[1749135144783,0.36531462,2592.2,2592.1,2.58410601]
[1749135145005,0.36531462,2592.2,2592.1,2.228]
[1749135145132,4.22304164,2592.2,2592.1,9.467]
[1749135145336,0.91531462,2592.2,2592.1,9.467]
[1749135145567,0.36531462,2592.2,2592.1,9.467]
[1749135146157,9.34449934,2592.2,2592.1,9.467]
[1749135146334,0.36531462,2592.2,2592.1,9.82363121]
[1749135146536,0.36531462,2592.2,2592.1,10.80599433]
[1749135146732,0.60926899,2592.7,2592.3,3.85753057]
[1749135146733,0.45689141,2592.7,2592.3,3.85753057]
[1749135146970,0.36579865,2592.6,2592.1,10.44936312]
[1749135147161,0.36579865,2592.5,2592.1,10.44936312]
[1749135147469,0.36579865,2592.4,2592.2,5.25901845]
[1749135147674,0.36602374,2592.3,2592.2,1.04493631]
[1749135147968,0.45689141,2592.8,2592.4,3.85729719]
[1749135148169,0.36600154,2592.7,2592.6,3.85713183]
[1749135148370,0.36600154,2592.7,2592.6,4.2136264]
[1749135148679,8.42918472,2593.5,2592.9,3.85661316]
[1749135148680,0.45689141,2593.2,2592.9,3.85661316]
[1749135148837,0.36612405,2593.1,2593.0,17.775]
[1749135149036,0.36612405,2593.1,2593.0,21.63153682]
[1749135149277,0.36612405,2593.1,2593.0,17.775]
[1749135149444,0.36612405,2593.1,2593.0,21.63153682]
[1749135149780,0.36612405,2593.1,2593.0,22.34497848]
[1749135150082,4.3125739,2593.6,2593.0,24.96514681]
[1749135150284,0.36625676,2593.5,2593.1,0.3566605]
[1749135150516,0.36625676,2593.4,2593.2,9.447]
[1749135150648,3.8563881,2593.1,2593.0,8.327]
[1749135150852,4.22264486,2593.1,2593.0,18.13153514]
[1749135151178,4.77264486,2593.1,2593.0,10.89254116]
[1749135151354,4.77264486,2593.1,2593.0,18.48811371]
[1749135151551,0.55,2593.1,2593.0,18.48813023]
[1749135151782,0.91666383,2593.1,2593.0,17.773]
[1749135152265,0.36666383,2593.1,2593.0,17.773]
[1749135152586,4.31398757,2593.6,2593.0,22.34488673]
[1749135152793,0.36674695,2593.5,2593.0,21.62951072]
[1749135153108,0.36674695,2593.4,2593.1,0.7153033]
[1749135153282,24.88751451,2593.8,2593.2,3.85611385]
[1749135153452,0.3667183,2593.7,2593.3,4.21376629]
[1749135153655,0.3667183,2593.6,2593.4,7.238]
[1749135153867,0.3667183,2593.5,2593.4,7.238]
[1749135154505,0.3667183,2593.5,2593.4,11.093942]
[1749135154716,0.3667183,2593.5,2593.4,7.238]
[1749135155874,0.3667183,2593.5,2593.0,10.535]
[1749135156110,8.42918472,2593.3,2593.1,0.35772239]
[1749135156296,8.42918472,2593.3,2593.1,7.237]
[1749135156503,0.36674563,2593.5,2593.1,7.237]
[1749135156714,8.42918472,2593.6,2593.2,4.57174421]
[1749135157015,16.0,2593.8,2593.1,7.237]
[1749135157215,4.22229195,2593.7,2593.2,0.35768638]
[1749135157379,4.22229195,2593.7,2593.1,11.09331263]
[1749135157380,0.36671653,2593.6,2593.1,11.09331263]
[1749135157571,0.55,2593.7,2593.3,3.85601056]
[1749135157775,0.55,2593.7,2593.2,0.35770576]
[1749135157776,0.36666422,2593.6,2593.1,7.237]
[1749135157987,8.97918472,2593.6,2593.0,10.535]
[1749135158193,12.83490758,2593.6,2593.1,7.237]
[1749135158394,0.36670533,2593.7,2593.2,0.35776724]
[1749135158599,0.45839567,2594.1,2593.5,3.85579332]
[1749135158773,7.78,2594.5,2593.9,3.85519873]
[1749135158774,0.36674304,2594.0,2593.9,3.85519873]
[1749135158978,0.36674304,2594.3,2593.9,9.444]
[1749135159279,0.36674304,2594.3,2593.2,1.81297672]
[1749135159280,8.42918472,2594.2,2594.0,9.80043158]
[1749135159496,8.42918472,2594.2,2594.1,2.207]
[1749135159791,14.11118645,2594.2,2594.1,2.207]
[1749135159985,30.11118645,2594.2,2594.1,2.207]
[1749135161994,0.36662227,2594.2,2594.1,2.207]
[1749135162551,0.36662227,2594.4,2594.2,3.85475291]
[1749135162682,0.36662227,2594.7,2594.3,19.41360432]
[1749135162882,0.36662227,2594.8,2594.3,19.41360432]
[1749135163079,0.36662227,2594.7,2594.3,19.4135725]
[1749135163321,0.36662227,2594.8,2594.7,3.85401009]
[1749135163616,3.87380718,2594.9,2594.7,9.442]
[1749135163807,0.02,2594.9,2594.7,9.442]
[1749135164584,3.87376906,2594.9,2594.7,9.442]
[1749135164920,8.42918472,2594.8,2594.6,8.324]
[1749135165132,3.85401009,2594.7,2594.6,8.324]
[1749135165637,12.28313021,2594.8,2594.6,17.766]
[1749135165997,5.29731009,2594.7,2594.6,8.324]
[1749135166201,5.29731009,2594.7,2594.6,10.53]
[1749135166901,0.02,2594.9,2594.6,10.53]
[1749135167100,0.02,2594.9,2594.7,7.233]
[1749135168110,12.30294321,2594.9,2594.6,10.53]
[1749135168314,8.44918472,2594.9,2594.7,7.233]
[1749135169742,12.3029697,2594.9,2594.7,7.233]
[1749135169950,3.85386156,2594.8,2594.7,7.233]
[1749135170310,3.85401009,2594.7,2594.6,10.53]
[1749135170511,3.85401009,2594.7,2594.6,17.762]
[1749135170829,4.40401009,2594.7,2594.6,17.761]
[1749135171039,4.40401009,2594.7,2594.6,10.53]
[1749135171351,4.40401009,2594.7,2594.6,17.761]
[1749135171706,0.55,2594.7,2594.6,17.761]
[1749135172144,4.40401009,2594.7,2594.6,17.761]
[1749135172342,0.55,2594.7,2594.6,17.761]
[1749135172667,4.40401009,2594.7,2594.6,17.761]
[1749135173230,4.40401009,2594.7,2594.6,10.53]
[1749135173672,4.40401009,2594.7,2594.6,17.76]
[1749135174032,4.40401009,2594.7,2594.6,10.53]
[1749135174843,20.40401009,2594.7,2594.6,8.324]
[1749135175043,20.77073229,2594.7,2594.6,10.53]
[1749135175576,20.40401009,2594.7,2594.6,10.53]
[1749135175749,20.7709727,2594.7,2594.6,10.53]
[1749135177094,0.55,2594.5,2594.4,2.206]
[1749135177300,3.85501686,2594.1,2593.7,8.322]
[1749135177580,12.28420158,2594.1,2593.8,9.435]
[1749135177730,3.85505011,2594.0,2593.8,9.435]
[1749135178158,12.28411941,2594.1,2593.8,9.435]
[1749135178369,3.85511714,2594.0,2593.8,9.435]
[1749135178677,3.85505011,2594.0,2593.8,9.435]
[1749135179232,3.85519873,2593.9,2593.8,2.206]
[1749135179437,3.85519873,2593.9,2593.8,9.435]
[1749135179438,4.40519873,2593.9,2593.8,9.435]
[1749135179730,4.40519873,2593.9,2593.8,2.206]
[1749135179931,5.27384736,2593.8,2593.7,10.528]
[1749135180170,3.85564466,2593.6,2592.2,1.04493631]
[1749135180371,8.42918472,2592.8,2592.4,3.85736337]
[1749135180575,0.36696261,2593.4,2592.5,16.0]
[1749135180826,0.36696261,2593.9,2592.9,16.0]
[1749135180978,3.85494907,2594.1,2593.5,3.85568319]
[1749135181179,3.85494907,2594.1,2593.6,7.229]
[1749135181591,0.55,2594.1,2593.6,11.08464384]
[1749135181787,4.40491493,2594.1,2593.6,7.229]
[1749135182093,0.55,2594.1,2593.6,11.0845108]
[1749135182300,8.42918472,2594.2,2593.6,8.72302754]
[1749135182611,3.85493501,2594.1,2593.6,7.229]
[1749135182919,8.42918472,2594.2,2593.8,3.85528955]
[1749135183087,8.42918472,2594.2,2593.9,7.228]
[1749135183411,12.28408622,2594.1,2594.0,2.206]
[1749135183612,8.42918472,2594.1,2594.0,2.206]
[1749135185291,0.36696261,2594.6,2594.0,2.206]
[1749135185490,12.65003461,2594.8,2594.1,4.42809548]
[1749135185815,12.65006549,2594.8,2594.2,11.08273879]
[1749135185979,8.79614733,2594.8,2594.3,3.85460109]
[1749135186186,12.28306184,2594.8,2594.2,11.08269167]
[1749135186385,3.85402929,2594.7,2594.2,7.228]
[1749135186989,3.85401009,2594.7,2594.2,7.228]
[1749135187193,8.42918472,2594.5,2594.2,7.228]
[1749135187377,12.28358761,2594.5,2593.9,12.17817293]
[1749135187575,12.28358761,2594.5,2594.0,9.429]
[1749135188009,12.28358761,2594.5,2593.9,12.17817293]
[1749135188205,12.28361221,2594.5,2594.0,9.428]
[1749135188655,8.42918472,2594.5,2594.0,13.28304154]
[1749135189215,8.42918472,2594.5,2594.1,0.21508011]
[1749135189547,8.42918472,2594.5,2594.0,13.28302388]
[1749135189750,8.42918472,2594.5,2594.0,9.428]
[1749135189913,8.42918472,2594.5,2594.0,13.28300865]
[1749135190112,8.79614733,2594.6,2594.1,0.21517034]
[1749135190336,8.79614733,2594.6,2594.0,13.28298092]
[1749135190337,8.42918472,2594.3,2594.2,7.225]
[1749135190537,8.42918472,2594.3,2594.0,2.202]
[1749135190721,8.42918472,2594.3,2594.1,7.225]
[1749135191045,12.2838587,2594.3,2593.9,8.323]
[1749135191250,12.2838587,2594.3,2594.2,9.427]
[1749135191614,12.2838587,2594.3,2594.2,2.202]
[1749135191880,12.2838587,2594.3,2594.2,9.427]
[1749135192015,4.40505011,2594.0,2593.9,8.323]
[1749135192214,14.07549744,2594.0,2593.9,10.525]
[1749135192610,1.79126261,2594.0,2593.9,8.323]
[1749135192809,0.36696261,2594.2,2593.9,21.60417703]
[1749135193146,8.79614733,2594.5,2594.0,3.8549817]
[1749135193352,12.28350118,2594.5,2593.9,21.60409919]
[1749135193718,8.42918472,2594.5,2593.9,17.749]
[1749135193963,8.42918472,2594.5,2594.0,3.85505011]
[1749135194259,1.27396261,2594.7,2593.9,19.90943313]
[1749135194420,0.36696261,2594.7,2594.5,3.85428455]
[1749135194615,0.36696261,2594.8,2594.6,9.426]
[1749135194947,4.22082417,2594.8,2594.7,2.202]
[1749135195279,3.85386156,2594.8,2594.7,2.202]
[1749135195478,0.36696261,2594.8,2594.7,2.202]
[1749135195880,4.22082417,2594.8,2594.7,2.202]
[1749135196084,0.36696261,2594.8,2594.7,2.202]
[1749135196389,0.36696261,2594.8,2593.9,8.323]
[1749135196390,3.85457803,2594.4,2593.9,8.323]
[1749135196589,12.28387073,2594.3,2594.0,9.424]
[1749135196790,3.8547541,2594.2,2594.0,2.201]
[1749135196951,3.8547541,2594.2,2593.9,8.323]
[1749135196952,4.40505011,2594.0,2593.9,8.323]
[1749135197152,12.83423483,2594.0,2593.9,10.524]
[1749135197351,12.83423483,2594.0,2593.9,17.746]
[1749135197758,13.20119744,2594.0,2593.9,17.746]
[1749135198400,13.20119744,2594.0,2593.9,8.323]
[1749135198710,19.85519873,2593.9,2593.8,2.202]
[1749135198869,3.85564466,2593.6,2593.5,7.222]
[1749135199049,12.28482938,2593.6,2593.5,9.424]
[1749135200406,0.36842027,2593.8,2593.5,9.423]
[1749135200610,3.85551876,2593.7,2593.5,9.423]
[1749135200968,3.85557164,2593.7,2593.5,9.423]
[1749135201198,9.27988472,2594.2,2593.5,10.3653]
[1749135201401,4.22330367,2594.1,2593.5,14.22101725]
[1749135201603,8.7975159,2594.2,2593.5,10.3653]
[1749135201901,0.36833118,2594.3,2593.5,10.3653]
[1749135202066,8.42918472,2594.2,2593.6,1.03653]
[1749135202266,3.85492104,2594.1,2593.6,1.03653]
[1749135202466,12.2840049,2594.2,2593.6,4.89215278]
[1749135202664,3.85490896,2594.1,2593.6,1.03653]
[1749135202904,12.28401478,2594.2,2593.6,4.89216048]
[1749135203404,8.42918472,2594.2,2593.7,3.8554801]
[1749135203704,12.28391324,2594.3,2593.8,7.221]
[1749135203904,8.42918472,2594.0,2593.5,2.202]
[1749135204080,8.42918472,2593.7,2593.6,7.22]
[1749135204264,8.42918472,2593.7,2593.3,19.85602714]
[1749135204265,8.42918472,2593.7,2593.1,8.322]
[1749135204465,8.42918472,2593.3,2593.2,2.202]
[1749135204665,8.42918472,2593.3,2593.2,9.422]
[1749135204877,0.36833118,2593.8,2593.2,9.422]
[1749135205076,0.36833118,2594.1,2593.6,3.85557919]
[1749135205279,8.42918472,2593.9,2593.7,7.22]
[1749135205480,12.28438345,2593.9,2593.8,7.22]
[1749135205728,3.85551909,2593.7,2593.1,12.17830362]